[Event "Early-Titled-Tuesday-Blitz-September-12-2023"]
[Site "Chess.com"]
[Date "2023.09.12"]
[Round "3"]
[White "jup1978"]
[Black "JaloliddinIlkhomi"]
[Result "1/2-1/2"]
[WhiteElo "2472"]
[BlackElo "2627"]
[TimeControl "180+1"]
[EndTime "8:27:37 PDT"]
[Termination "Game drawn - insufficient material"]

1. d4 {[%clk 0:03:00.9]} 1... Nf6 {[%clk 0:02:58.4]} 2. c4 {[%clk 0:02:54.7]}
2... e6 {[%clk 0:02:58.4]} 3. Nf3 {[%clk 0:02:54]} 3... b6 {[%clk 0:02:57.7]} 4.
g3 {[%clk 0:02:53.7]} 4... Bb7 {[%clk 0:02:58.3]} 5. Bg2 {[%clk 0:02:54.1]} 5...
Be7 {[%clk 0:02:58.9]} 6. O-O {[%clk 0:02:53.8]} 6... O-O {[%clk 0:02:59.5]} 7.
Re1 {[%clk 0:02:54.4]} 7... d5 {[%clk 0:02:58.6]} 8. cxd5 {[%clk 0:02:53.2]}
8... exd5 {[%clk 0:02:58.1]} 9. Nc3 {[%clk 0:02:53.2]} 9... Nbd7 {[%clk
0:02:58.4]} 10. Bf4 {[%clk 0:02:52.7]} 10... c5 {[%clk 0:02:57.5]} 11. Rc1
{[%clk 0:02:51.6]} 11... a6 {[%clk 0:02:56.6]} 12. h4 {[%clk 0:02:51.7]} 12...
Rc8 {[%clk 0:02:55.6]} 13. e3 {[%clk 0:02:50.4]} 13... c4 {[%clk 0:02:39.6]} 14.
Ne5 {[%clk 0:02:45.6]} 14... b5 {[%clk 0:02:37.1]} 15. a3 {[%clk 0:02:35.7]}
15... Re8 {[%clk 0:02:34.2]} 16. g4 {[%clk 0:02:26.2]} 16... Nxe5 {[%clk
0:02:32.9]} 17. dxe5 {[%clk 0:02:23.2]} 17... Ne4 {[%clk 0:02:33.5]} 18. Nxe4
{[%clk 0:02:22]} 18... dxe4 {[%clk 0:02:33.8]} 19. g5 {[%clk 0:02:15.5]} 19...
Qxd1 {[%clk 0:02:31.7]} 20. Rexd1 {[%clk 0:02:16.4]} 20... Red8 {[%clk 0:02:32]}
21. Bh3 {[%clk 0:02:07.9]} 21... Ra8 {[%clk 0:02:01]} 22. e6 {[%clk 0:01:54.7]}
22... Rd3 {[%clk 0:01:59.2]} 23. exf7+ {[%clk 0:01:50.4]} 23... Kxf7 {[%clk
0:02:00.1]} 24. Bf1 {[%clk 0:01:49.3]} 24... Rxd1 {[%clk 0:01:53.2]} 25. Rxd1
{[%clk 0:01:48.5]} 25... Rd8 {[%clk 0:01:53.2]} 26. Rxd8 {[%clk 0:01:47]} 26...
Bxd8 {[%clk 0:01:54.1]} 27. Bh3 {[%clk 0:01:46.5]} 27... a5 {[%clk 0:01:39.3]}
28. Kf1 {[%clk 0:01:46.4]} 28... b4 {[%clk 0:01:38.8]} 29. axb4 {[%clk
0:01:47.3]} 29... axb4 {[%clk 0:01:35.9]} 30. Ke1 {[%clk 0:01:47.3]} 30... Bc6
{[%clk 0:01:31.6]} 31. Bf1 {[%clk 0:01:42.2]} 31... Bd5 {[%clk 0:01:25.9]} 32.
Bd6 {[%clk 0:01:40.3]} 32... Be7 {[%clk 0:01:15.1]} 33. Bxe7 {[%clk 0:01:38.6]}
33... Kxe7 {[%clk 0:01:16]} 34. Kd2 {[%clk 0:01:38.3]} 34... Ke6 {[%clk
0:01:16.1]} 35. Bh3+ {[%clk 0:01:38]} 35... Ke5 {[%clk 0:01:15.3]} 36. Bg4
{[%clk 0:01:33.6]} 36... Be6 {[%clk 0:01:14.4]} 37. Be2 {[%clk 0:01:26]} 37...
h6 {[%clk 0:01:06.1]} 38. gxh6 {[%clk 0:01:24.5]} 38... gxh6 {[%clk 0:01:07]}
39. f4+ {[%clk 0:01:18.4]} 39... exf3 {[%clk 0:01:04.1]} 40. Bxf3 {[%clk
0:01:18.8]} 40... Bd5 {[%clk 0:01:01]} 41. Bg4 {[%clk 0:01:17.4]} 41... Ke4
{[%clk 0:00:57]} 42. Bh5 {[%clk 0:01:07.4]} 42... Be6 {[%clk 0:00:53.3]} 43. Be2
{[%clk 0:01:05.7]} 43... Bf7 {[%clk 0:00:44]} 44. Bg4 {[%clk 0:01:04]} 44... Bg8
{[%clk 0:00:38.6]} 45. Bh5 {[%clk 0:01:02.6]} 45... Be6 {[%clk 0:00:38.2]} 46.
Be2 {[%clk 0:01:01.6]} 46... c3+ {[%clk 0:00:38.6]} 47. bxc3 {[%clk 0:01:01.4]}
47... bxc3+ {[%clk 0:00:39.5]} 48. Kxc3 {[%clk 0:01:00.7]} 48... Kxe3 {[%clk
0:00:40.4]} 49. Bd1 {[%clk 0:00:57]} 49... Kf2 {[%clk 0:00:39]} 50. Kd4 {[%clk
0:00:57]} 50... Kg3 {[%clk 0:00:39.1]} 51. Ke5 {[%clk 0:00:55.1]} 51... Bd7
{[%clk 0:00:37.7]} 52. h5 {[%clk 0:00:54.1]} 52... Kh4 {[%clk 0:00:33.3]} 53.
Kf6 {[%clk 0:00:52.2]} 53... Be8 {[%clk 0:00:30.7]} 54. Kg7 {[%clk 0:00:49.5]}
54... Bxh5 {[%clk 0:00:30.4]} 55. Kxh6 {[%clk 0:00:49]} 1/2-1/2

[Event "Early-Titled-Tuesday-Blitz-September-12-2023"]
[Site "Chess.com"]
[Date "2023.09.12"]
[Round "3"]
[White "MBA_CHESS_2021"]
[Black "GKARU"]
[Result "1-0"]
[WhiteElo "2128"]
[BlackElo "2500"]
[TimeControl "180+1"]
[EndTime "8:27:38 PDT"]
[Termination "MBA_CHESS_2021 won on time"]

1. e4 {[%clk 0:03:00.2]} 1... c5 {[%clk 0:02:55.9]} 2. c4 {[%clk 0:02:58.7]}
2... Nc6 {[%clk 0:02:55.5]} 3. Nc3 {[%clk 0:02:58.7]} 3... e5 {[%clk 0:02:55.6]}
4. d3 {[%clk 0:02:59.2]} 4... g6 {[%clk 0:02:56.1]} 5. Be3 {[%clk 0:02:59.5]}
5... d6 {[%clk 0:02:56]} 6. f4 {[%clk 0:02:59.3]} 6... Bg7 {[%clk 0:02:53.9]} 7.
Nf3 {[%clk 0:02:59.6]} 7... exf4 {[%clk 0:02:41]} 8. Bxf4 {[%clk 0:02:58.4]}
8... Nge7 {[%clk 0:02:41.4]} 9. Be2 {[%clk 0:02:57.6]} 9... O-O {[%clk
0:02:41.9]} 10. O-O {[%clk 0:02:57.4]} 10... f5 {[%clk 0:02:41.2]} 11. Bg5
{[%clk 0:02:42.4]} 11... h6 {[%clk 0:02:40.2]} 12. Bh4 {[%clk 0:02:42.1]} 12...
g5 {[%clk 0:02:40]} 13. Nxg5 {[%clk 0:02:03.5]} 13... hxg5 {[%clk 0:02:39.4]}
14. Bxg5 {[%clk 0:02:04.2]} 14... Nd4 {[%clk 0:02:31.6]} 15. Bh5 {[%clk
0:01:59.4]} 15... Be6 {[%clk 0:02:16.7]} 16. Nd5 {[%clk 0:01:39.5]} 16... Bxd5
{[%clk 0:02:16]} 17. cxd5 {[%clk 0:01:35.6]} 17... Qd7 {[%clk 0:02:16.5]} 18.
Kh1 {[%clk 0:01:23.5]} 18... Kh7 {[%clk 0:01:53]} 19. Qe1 {[%clk 0:01:13.7]}
19... Ng8 {[%clk 0:01:27.6]} 20. Qg3 {[%clk 0:01:00]} 20... Rae8 {[%clk
0:01:12.1]} 21. Bxe8 {[%clk 0:00:42.5]} 21... Rxe8 {[%clk 0:01:09.2]} 22. exf5
{[%clk 0:00:37]} 22... Nxf5 {[%clk 0:00:24.6]} 23. Qh3+ {[%clk 0:00:35.4]} 23...
Kg6 {[%clk 0:00:25.2]} 24. g4 {[%clk 0:00:22.6]} 24... Kxg5 {[%clk 0:00:17]} 25.
Qh5+ {[%clk 0:00:20.6]} 25... Kf6 {[%clk 0:00:16.8]} 26. Rxf5+ {[%clk
0:00:20.2]} 26... Ke7 {[%clk 0:00:16.6]} 27. Rf7+ {[%clk 0:00:20.5]} 27... Kd8
{[%clk 0:00:17.3]} 28. Rxd7+ {[%clk 0:00:20.2]} 28... Kxd7 {[%clk 0:00:18.2]}
29. Qf7+ {[%clk 0:00:19.8]} 29... Re7 {[%clk 0:00:12.8]} 30. Qxg8 {[%clk
0:00:19.6]} 1-0

[Event "Early-Titled-Tuesday-Blitz-September-12-2023"]
[Site "Chess.com"]
[Date "2023.09.12"]
[Round "3"]
[White "HeinichessPY"]
[Black "kuba2006"]
[Result "1/2-1/2"]
[WhiteElo "2347"]
[BlackElo "2526"]
[TimeControl "180+1"]
[EndTime "8:27:40 PDT"]
[Termination "Game drawn by agreement"]

1. e4 {[%clk 0:02:58]} 1... Nf6 {[%clk 0:03:00.9]} 2. Nc3 {[%clk 0:02:56.4]}
2... e5 {[%clk 0:03:00.4]} 3. f4 {[%clk 0:02:55.7]} 3... d5 {[%clk 0:02:59.5]}
4. exd5 {[%clk 0:02:55.3]} 4... exf4 {[%clk 0:02:55]} 5. Nf3 {[%clk 0:02:55.1]}
5... Nxd5 {[%clk 0:02:50.1]} 6. Bc4 {[%clk 0:02:52.3]} 6... Be6 {[%clk
0:02:22.8]} 7. Nxd5 {[%clk 0:02:49.3]} 7... Bxd5 {[%clk 0:02:18.5]} 8. Qe2+
{[%clk 0:02:48.1]} 8... Be7 {[%clk 0:02:18.5]} 9. O-O {[%clk 0:02:48.3]} 9...
Nc6 {[%clk 0:02:09.6]} 10. d3 {[%clk 0:02:43.6]} 10... Bxc4 {[%clk 0:02:05.6]}
11. dxc4 {[%clk 0:02:44.5]} 11... O-O {[%clk 0:02:06]} 12. Bxf4 {[%clk
0:02:44.2]} 12... Bc5+ {[%clk 0:02:04.8]} 13. Kh1 {[%clk 0:02:43.9]} 13... Nd4
{[%clk 0:02:00.4]} 14. Nxd4 {[%clk 0:02:43.7]} 14... Qxd4 {[%clk 0:01:58.5]} 15.
c3 {[%clk 0:02:40.9]} 15... Qd7 {[%clk 0:01:51.8]} 16. Rad1 {[%clk 0:02:41]}
16... Qc6 {[%clk 0:01:47.1]} 17. Qf3 {[%clk 0:02:39.4]} 17... Qxf3 {[%clk
0:01:42.2]} 18. Rxf3 {[%clk 0:02:40.3]} 18... Rad8 {[%clk 0:01:21.1]} 19. Rfd3
{[%clk 0:02:38.8]} 19... Rxd3 {[%clk 0:01:20.8]} 20. Rxd3 {[%clk 0:02:39.4]}
20... Re8 {[%clk 0:01:21.7]} 21. h3 {[%clk 0:02:25.4]} 21... h6 {[%clk
0:01:14.6]} 22. Bxc7 {[%clk 0:02:23.1]} 22... Re1+ {[%clk 0:01:14.2]} 23. Kh2
{[%clk 0:02:23.6]} 23... Bg1+ {[%clk 0:01:01.6]} 24. Kg3 {[%clk 0:02:23.6]}
24... Re2 {[%clk 0:01:01.7]} 25. Bf4 {[%clk 0:02:01.4]} 25... Rxb2 {[%clk
0:00:59.2]} 26. Be3 {[%clk 0:01:57.8]} 26... Bxe3 {[%clk 0:00:57.5]} 27. Rxe3
{[%clk 0:01:58.7]} 27... Rxa2 {[%clk 0:00:57]} 28. Re8+ {[%clk 0:01:59.1]} 28...
Kh7 {[%clk 0:00:56.6]} 29. Re7 {[%clk 0:01:58.7]} 29... Rc2 {[%clk 0:00:55.6]}
30. Rxb7 {[%clk 0:01:46.5]} 30... Rxc3+ {[%clk 0:00:53.2]} 31. Kh2 {[%clk
0:01:44.5]} 31... a5 {[%clk 0:00:48.2]} 32. Rxf7 {[%clk 0:01:42.1]} 32... Rxc4
{[%clk 0:00:46.9]} 33. Ra7 {[%clk 0:01:42.7]} 33... Ra4 {[%clk 0:00:47]} 34. Ra6
{[%clk 0:01:42.4]} 34... Ra1 {[%clk 0:00:46.8]} 35. h4 {[%clk 0:01:42.3]} 35...
h5 {[%clk 0:00:45]} 36. Ra7 {[%clk 0:01:38.5]} 36... Kh6 {[%clk 0:00:26.9]} 37.
Ra6+ {[%clk 0:01:39.2]} 37... Kh7 {[%clk 0:00:27.8]} 38. Ra7 {[%clk 0:01:39.8]}
38... Ra4 {[%clk 0:00:26.7]} 39. Kh3 {[%clk 0:01:37.3]} 39... Ra3+ {[%clk
0:00:26.8]} 40. Kh2 {[%clk 0:01:37.6]} 40... Ra1 {[%clk 0:00:26.6]} 41. Ra6
{[%clk 0:01:37.4]} 41... a4 {[%clk 0:00:26.5]} 42. Ra7 {[%clk 0:01:37.9]} 42...
a3 {[%clk 0:00:26.8]} 43. Ra6 {[%clk 0:01:38.3]} 43... Kg8 {[%clk 0:00:23.6]}
44. Ra7 {[%clk 0:01:37.2]} 44... Kf8 {[%clk 0:00:17.3]} 45. Kg3 {[%clk
0:01:36.9]} 45... g6 {[%clk 0:00:15]} 46. Kf4 {[%clk 0:01:35.6]} 46... a2 {[%clk
0:00:14.6]} 47. Kg5 {[%clk 0:01:33.7]} 47... Ke8 {[%clk 0:00:10.1]} 48. Kxg6
{[%clk 0:01:32.2]} 48... Rh1 {[%clk 0:00:07.8]} 49. Rxa2 {[%clk 0:01:25.7]}
49... Rxh4 {[%clk 0:00:08.3]} 50. Ra5 {[%clk 0:01:10]} 50... Rg4+ {[%clk
0:00:07.7]} 51. Kxh5 {[%clk 0:01:09.7]} 51... Rxg2 {[%clk 0:00:08.6]} 52. Re5+
{[%clk 0:01:10]} 1/2-1/2

[Event "Early-Titled-Tuesday-Blitz-September-12-2023"]
[Site "Chess.com"]
[Date "2023.09.12"]
[Round "3"]
[White "Kapitan_Bayan"]
[Black "Djager97"]
[Result "0-1"]
[WhiteElo "2204"]
[BlackElo "2541"]
[TimeControl "180+1"]
[EndTime "8:27:45 PDT"]
[Termination "Djager97 won by resignation"]

1. e4 {[%clk 0:03:00.9]} 1... e5 {[%clk 0:02:59.7]} 2. Nf3 {[%clk 0:02:59.8]}
2... Nc6 {[%clk 0:03:00.3]} 3. Bc4 {[%clk 0:03:00]} 3... Nf6 {[%clk 0:02:55.9]}
4. d3 {[%clk 0:02:58.8]} 4... h6 {[%clk 0:02:55.7]} 5. O-O {[%clk 0:02:57.8]}
5... d6 {[%clk 0:02:56.2]} 6. c3 {[%clk 0:02:52.6]} 6... g6 {[%clk 0:02:55.5]}
7. Re1 {[%clk 0:02:36]} 7... Bg7 {[%clk 0:02:55.1]} 8. d4 {[%clk 0:02:32.8]}
8... Qe7 {[%clk 0:02:54.8]} 9. d5 {[%clk 0:02:22.5]} 9... Nb8 {[%clk 0:02:48.8]}
10. Bb5+ {[%clk 0:02:16.3]} 10... c6 {[%clk 0:02:45.3]} 11. dxc6 {[%clk
0:02:15.8]} 11... bxc6 {[%clk 0:02:46.2]} 12. Bc4 {[%clk 0:02:14]} 12... O-O
{[%clk 0:02:45.8]} 13. b3 {[%clk 0:02:03]} 13... Nbd7 {[%clk 0:02:25.5]} 14. Ba3
{[%clk 0:02:01.5]} 14... c5 {[%clk 0:02:26.1]} 15. Nbd2 {[%clk 0:01:37.4]} 15...
Bb7 {[%clk 0:02:25.9]} 16. Qc2 {[%clk 0:01:30.2]} 16... Nb6 {[%clk 0:02:25.3]}
17. Nf1 {[%clk 0:01:23.6]} 17... Nxc4 {[%clk 0:02:21]} 18. bxc4 {[%clk
0:01:24.5]} 18... Qe6 {[%clk 0:02:18.2]} 19. Qd3 {[%clk 0:01:21.5]} 19... Bc6
{[%clk 0:01:47.5]} 20. N3d2 {[%clk 0:00:58]} 20... Nh5 {[%clk 0:01:32.9]} 21.
Ne3 {[%clk 0:00:46.6]} 21... Nf4 {[%clk 0:01:32.3]} 22. Qf1 {[%clk 0:00:43.6]}
22... f5 {[%clk 0:01:25.2]} 23. g3 {[%clk 0:00:20.4]} 23... fxe4 {[%clk
0:01:07.4]} 24. gxf4 {[%clk 0:00:19.2]} 24... exf4 {[%clk 0:01:08.3]} 25. Nd5
{[%clk 0:00:19.4]} 25... e3 {[%clk 0:00:49.1]} 26. fxe3 {[%clk 0:00:17.7]} 26...
fxe3 {[%clk 0:00:49.2]} 27. Rxe3 {[%clk 0:00:17]} 27... Rxf1+ {[%clk 0:00:47.3]}
28. Rxf1 {[%clk 0:00:15.2]} 28... Qg4+ {[%clk 0:00:35.8]} 29. Rg3 {[%clk
0:00:13.8]} 29... Qe2 {[%clk 0:00:35.5]} 30. Rf2 {[%clk 0:00:11.8]} 30... Qe1+
{[%clk 0:00:28.5]} 31. Kg2 {[%clk 0:00:12.1]} 31... Rf8 {[%clk 0:00:25.9]} 32.
Rff3 {[%clk 0:00:09.5]} 32... Qxd2+ {[%clk 0:00:25.4]} 33. Kh1 {[%clk
0:00:06.4]} 33... Rxf3 {[%clk 0:00:24.3]} 34. Rxf3 {[%clk 0:00:06.9]} 34... Bxd5
{[%clk 0:00:24.8]} 35. cxd5 {[%clk 0:00:06.4]} 35... Qxd5 {[%clk 0:00:25.7]} 36.
Kg2 {[%clk 0:00:06.8]} 36... Qxa2+ {[%clk 0:00:26.1]} 0-1

[Event "Early-Titled-Tuesday-Blitz-September-12-2023"]
[Site "Chess.com"]
[Date "2023.09.12"]
[Round "3"]
[White "Eloist"]
[Black "RandomNoob04"]
[Result "1-0"]
[WhiteElo "2481"]
[BlackElo "2623"]
[TimeControl "180+1"]
[EndTime "8:27:48 PDT"]
[Termination "Eloist won by checkmate"]

1. e4 {[%clk 0:02:58]} 1... e5 {[%clk 0:03:00]} 2. Bc4 {[%clk 0:02:51.5]} 2...
Nc6 {[%clk 0:02:54.4]} 3. Nf3 {[%clk 0:02:50.8]} 3... Bc5 {[%clk 0:02:53.7]} 4.
c3 {[%clk 0:02:50.5]} 4... Nf6 {[%clk 0:02:53.2]} 5. d3 {[%clk 0:02:50.8]} 5...
O-O {[%clk 0:02:51.3]} 6. O-O {[%clk 0:02:50.7]} 6... a6 {[%clk 0:02:51.3]} 7.
Bb3 {[%clk 0:02:47.1]} 7... d6 {[%clk 0:02:51.3]} 8. Re1 {[%clk 0:02:46]} 8...
Ba7 {[%clk 0:02:51.4]} 9. h3 {[%clk 0:02:43.5]} 9... h6 {[%clk 0:02:50.8]} 10.
Nbd2 {[%clk 0:02:43.1]} 10... Re8 {[%clk 0:02:51.4]} 11. Nh2 {[%clk 0:02:33.1]}
11... Be6 {[%clk 0:02:49.6]} 12. Qf3 {[%clk 0:02:28.6]} 12... d5 {[%clk
0:02:46.4]} 13. Ndf1 {[%clk 0:02:24.5]} 13... Kh7 {[%clk 0:02:11.4]} 14. Ng3
{[%clk 0:02:23.4]} 14... Qd7 {[%clk 0:02:10.8]} 15. Nf5 {[%clk 0:02:00.2]} 15...
Bxf5 {[%clk 0:02:05]} 16. exf5 {[%clk 0:01:57.7]} 16... e4 {[%clk 0:02:01.7]}
17. dxe4 {[%clk 0:01:52.8]} 17... Nxe4 {[%clk 0:02:02.2]} 18. Be3 {[%clk
0:01:09.3]} 18... d4 {[%clk 0:02:02.1]} 19. cxd4 {[%clk 0:00:57.6]} 19... Nxd4
{[%clk 0:02:03]} 20. Bxd4 {[%clk 0:00:47.4]} 20... Qxd4 {[%clk 0:01:56]} 21. Ng4
{[%clk 0:00:40.3]} 21... Nd6 {[%clk 0:01:01.7]} 22. f6 {[%clk 0:00:30.9]} 22...
g6 {[%clk 0:01:01.7]} 23. Rad1 {[%clk 0:00:24.7]} 23... Qb4 {[%clk 0:01:01.4]}
24. Ne5 {[%clk 0:00:16.6]} 24... a5 {[%clk 0:00:33.6]} 25. a3 {[%clk 0:00:16.1]}
25... Qb5 {[%clk 0:00:17.2]} 26. Nxf7 {[%clk 0:00:15.4]} 26... Nxf7 {[%clk
0:00:06.6]} 27. Bxf7 {[%clk 0:00:16.3]} 27... Rxe1+ {[%clk 0:00:07.3]} 28. Rxe1
{[%clk 0:00:16.1]} 28... Qxb2 {[%clk 0:00:07.1]} 29. Re7 {[%clk 0:00:15.7]}
29... Kh8 {[%clk 0:00:03.9]} 30. Bxg6 {[%clk 0:00:15.2]} 30... Rf8 {[%clk
0:00:03.1]} 31. Rh7+ {[%clk 0:00:14.6]} 31... Kg8 {[%clk 0:00:03.6]} 32. f7+
{[%clk 0:00:14.7]} 32... Rxf7 {[%clk 0:00:03.1]} 33. Qxf7# {[%clk 0:00:14.2]}
1-0

[Event "Early-Titled-Tuesday-Blitz-September-12-2023"]
[Site "Chess.com"]
[Date "2023.09.12"]
[Round "3"]
[White "CixPer1968"]
[Black "marik_spb"]
[Result "0-1"]
[WhiteElo "2165"]
[BlackElo "2421"]
[TimeControl "180+1"]
[EndTime "8:27:50 PDT"]
[Termination "marik_spb won on time"]

1. d4 {[%clk 0:02:54.1]} 1... Nf6 {[%clk 0:02:59.6]} 2. c4 {[%clk 0:02:52.9]}
2... e6 {[%clk 0:02:59.8]} 3. Nf3 {[%clk 0:02:51.8]} 3... b6 {[%clk 0:02:59.5]}
4. g3 {[%clk 0:02:50.6]} 4... Bb7 {[%clk 0:02:55.2]} 5. Bg2 {[%clk 0:02:50.4]}
5... d5 {[%clk 0:02:54]} 6. cxd5 {[%clk 0:02:48.4]} 6... exd5 {[%clk 0:02:53.5]}
7. O-O {[%clk 0:02:44.7]} 7... Be7 {[%clk 0:02:53.3]} 8. Nc3 {[%clk 0:02:43.8]}
8... O-O {[%clk 0:02:53.4]} 9. Bf4 {[%clk 0:02:36.9]} 9... a6 {[%clk 0:02:49.9]}
10. Rc1 {[%clk 0:02:35.5]} 10... Nbd7 {[%clk 0:02:50.2]} 11. Ne5 {[%clk
0:02:33.6]} 11... c5 {[%clk 0:02:36.3]} 12. dxc5 {[%clk 0:02:28.8]} 12... Nxc5
{[%clk 0:02:33.3]} 13. Bg5 {[%clk 0:02:17.1]} 13... Nfe4 {[%clk 0:02:27.2]} 14.
Bxe7 {[%clk 0:02:11.8]} 14... Qxe7 {[%clk 0:02:28.1]} 15. Nf3 {[%clk 0:02:08.8]}
15... Rfd8 {[%clk 0:02:23]} 16. Nd4 {[%clk 0:02:05.3]} 16... Qf6 {[%clk
0:02:12.7]} 17. e3 {[%clk 0:02:04.3]} 17... a5 {[%clk 0:02:09.9]} 18. Ncb5
{[%clk 0:01:41]} 18... Rac8 {[%clk 0:02:02.9]} 19. Qe2 {[%clk 0:01:32.2]} 19...
Ba6 {[%clk 0:02:02.3]} 20. Rfd1 {[%clk 0:01:26.8]} 20... h6 {[%clk 0:01:47]} 21.
Bh3 {[%clk 0:00:36.1]} 21... Ne6 {[%clk 0:01:09.3]} 22. Nxe6 {[%clk 0:00:15.4]}
22... Bxb5 {[%clk 0:01:07.9]} 23. Qxb5 {[%clk 0:00:14.1]} 23... Qxf2+ {[%clk
0:01:08.4]} 24. Kh1 {[%clk 0:00:13.1]} 24... Rxc1 {[%clk 0:01:04.5]} 25. Rxc1
{[%clk 0:00:11.4]} 25... Qxe3 {[%clk 0:01:04.6]} 26. Rf1 {[%clk 0:00:09.1]}
26... fxe6 {[%clk 0:01:00.4]} 27. Bxe6+ {[%clk 0:00:10]} 27... Kh8 {[%clk
0:01:00]} 28. Qc6 {[%clk 0:00:08.6]} 28... Nf2+ {[%clk 0:00:56.8]} 29. Kg2
{[%clk 0:00:08.3]} 29... Qe4+ {[%clk 0:00:48.9]} 30. Kxf2 {[%clk 0:00:06.3]}
30... Rf8+ {[%clk 0:00:49.1]} 31. Kg1 {[%clk 0:00:06.7]} 31... Qe3+ {[%clk
0:00:49.5]} 32. Kg2 {[%clk 0:00:07.1]} 32... Qe2+ {[%clk 0:00:49.8]} 33. Kh3
{[%clk 0:00:06.6]} 33... Qxf1+ {[%clk 0:00:49.9]} 34. Kg4 {[%clk 0:00:05.5]}
34... Qf3+ {[%clk 0:00:40.8]} 35. Kh3 {[%clk 0:00:05.8]} 35... d4 {[%clk
0:00:38.8]} 36. Bd5 {[%clk 0:00:03.7]} 36... Qh5+ {[%clk 0:00:34.8]} 37. Kg2
{[%clk 0:00:02.8]} 37... d3 {[%clk 0:00:32.9]} 0-1

[Event "Early-Titled-Tuesday-Blitz-September-12-2023"]
[Site "Chess.com"]
[Date "2023.09.12"]
[Round "3"]
[White "Ishowmoves57"]
[Black "LileKoridze"]
[Result "0-1"]
[WhiteElo "2103"]
[BlackElo "2371"]
[TimeControl "180+1"]
[EndTime "8:27:50 PDT"]
[Termination "LileKoridze won by resignation"]

1. e4 {[%clk 0:02:59.5]} 1... c5 {[%clk 0:02:59.4]} 2. Nf3 {[%clk 0:02:58.6]}
2... d6 {[%clk 0:02:55.1]} 3. c3 {[%clk 0:02:56]} 3... Nf6 {[%clk 0:02:54.6]} 4.
Qc2 {[%clk 0:02:55]} 4... e5 {[%clk 0:02:51.3]} 5. d4 {[%clk 0:02:50.2]} 5...
Nc6 {[%clk 0:02:50.6]} 6. dxe5 {[%clk 0:02:43]} 6... dxe5 {[%clk 0:02:49.9]} 7.
Bb5 {[%clk 0:02:42.7]} 7... Bd6 {[%clk 0:02:47.7]} 8. O-O {[%clk 0:02:36.1]}
8... Qc7 {[%clk 0:02:46.6]} 9. Nbd2 {[%clk 0:02:28.3]} 9... O-O {[%clk
0:02:45.6]} 10. Nc4 {[%clk 0:02:27.9]} 10... a6 {[%clk 0:02:43.3]} 11. Nxd6
{[%clk 0:02:28]} 11... Qxd6 {[%clk 0:02:43.7]} 12. Be2 {[%clk 0:02:23.5]} 12...
h6 {[%clk 0:02:42]} 13. h3 {[%clk 0:02:19.4]} 13... Be6 {[%clk 0:02:38.7]} 14.
Be3 {[%clk 0:02:18.3]} 14... Rfd8 {[%clk 0:02:36.6]} 15. Rfd1 {[%clk 0:02:18.2]}
15... Qe7 {[%clk 0:02:36.9]} 16. Nd2 {[%clk 0:02:00.7]} 16... b6 {[%clk
0:02:09.9]} 17. Nf1 {[%clk 0:01:32.7]} 17... Rxd1 {[%clk 0:02:04.9]} 18. Rxd1
{[%clk 0:01:30.6]} 18... b5 {[%clk 0:02:02.2]} 19. Ng3 {[%clk 0:01:24.3]} 19...
Na5 {[%clk 0:01:09.4]} 20. b3 {[%clk 0:01:16.6]} 20... Qc7 {[%clk 0:01:05.4]}
21. Qd2 {[%clk 0:01:14]} 21... Qb7 {[%clk 0:00:58.6]} 22. Bxc5 {[%clk
0:01:06.8]} 22... Rc8 {[%clk 0:00:58.1]} 23. Bb4 {[%clk 0:00:48.7]} 23... Nc6
{[%clk 0:00:55.6]} 24. Bc5 {[%clk 0:00:48.2]} 24... Nb8 {[%clk 0:00:51.4]} 25.
Qe3 {[%clk 0:00:40.8]} 25... Nbd7 {[%clk 0:00:49.2]} 26. Ba3 {[%clk 0:00:35.9]}
26... Qc6 {[%clk 0:00:45.9]} 27. Bb2 {[%clk 0:00:33.7]} 27... Nc5 {[%clk
0:00:45]} 28. f3 {[%clk 0:00:29.1]} 28... a5 {[%clk 0:00:41.2]} 29. Rc1 {[%clk
0:00:28.4]} 29... a4 {[%clk 0:00:41]} 30. b4 {[%clk 0:00:26]} 30... Nb7 {[%clk
0:00:38.5]} 31. a3 {[%clk 0:00:26]} 31... Nd6 {[%clk 0:00:36.9]} 32. Nf1 {[%clk
0:00:21.2]} 32... Nc4 {[%clk 0:00:37]} 33. Bxc4 {[%clk 0:00:20.6]} 33... Qxc4
{[%clk 0:00:37]} 34. Nd2 {[%clk 0:00:19.2]} 34... Qa2 {[%clk 0:00:36.4]} 35. Rb1
{[%clk 0:00:18]} 35... Bb3 {[%clk 0:00:34]} 36. Qe1 {[%clk 0:00:16.7]} 36... Bc2
{[%clk 0:00:33.7]} 37. Qc1 {[%clk 0:00:06.9]} 37... Bxb1 {[%clk 0:00:33]} 38.
Nxb1 {[%clk 0:00:06.5]} 38... Nd7 {[%clk 0:00:30.1]} 39. Nd2 {[%clk 0:00:06.8]}
39... Nb6 {[%clk 0:00:30.3]} 40. Nf1 {[%clk 0:00:05.2]} 40... Nc4 {[%clk
0:00:30.1]} 0-1

[Event "Early-Titled-Tuesday-Blitz-September-12-2023"]
[Site "Chess.com"]
[Date "2023.09.12"]
[Round "3"]
[White "Massakru"]
[Black "Nf3c5"]
[Result "0-1"]
[WhiteElo "2409"]
[BlackElo "2585"]
[TimeControl "180+1"]
[EndTime "8:27:52 PDT"]
[Termination "Nf3c5 won on time"]

1. e4 {[%clk 0:02:55.1]} 1... c5 {[%clk 0:02:57.7]} 2. Nf3 {[%clk 0:02:54.7]}
2... Nc6 {[%clk 0:02:57.6]} 3. c3 {[%clk 0:02:54.6]} 3... d5 {[%clk 0:02:56.5]}
4. exd5 {[%clk 0:02:55.5]} 4... Qxd5 {[%clk 0:02:56.7]} 5. d4 {[%clk 0:02:56.1]}
5... Bg4 {[%clk 0:02:52.1]} 6. Be2 {[%clk 0:02:54.5]} 6... e6 {[%clk 0:02:50.6]}
7. dxc5 {[%clk 0:02:46.4]} 7... Qxc5 {[%clk 0:02:38.4]} 8. Be3 {[%clk
0:02:40.7]} 8... Qh5 {[%clk 0:02:34.9]} 9. h3 {[%clk 0:02:37.5]} 9... Nf6 {[%clk
0:02:23.4]} 10. O-O {[%clk 0:02:36.4]} 10... Bxh3 {[%clk 0:01:31.5]} 11. gxh3
{[%clk 0:02:31.5]} 11... Qxh3 {[%clk 0:01:31.4]} 12. Ng5 {[%clk 0:02:04.8]}
12... Qh4 {[%clk 0:01:27.5]} 13. Kg2 {[%clk 0:02:02]} 13... Nd5 {[%clk
0:01:17.5]} 14. Qc1 {[%clk 0:01:45.6]} 14... Be7 {[%clk 0:01:13.1]} 15. f4
{[%clk 0:01:31.2]} 15... Bxg5 {[%clk 0:00:52.8]} 16. fxg5 {[%clk 0:01:17.8]}
16... Qe4+ {[%clk 0:00:52]} 17. Kf2 {[%clk 0:01:16.6]} 17... f6 {[%clk
0:00:35.7]} 18. Bf3 {[%clk 0:01:11.4]} 18... Qh4+ {[%clk 0:00:35]} 19. Kg2
{[%clk 0:01:11.4]} 19... Ne5 {[%clk 0:00:22]} 20. Rh1 {[%clk 0:00:59.7]} 20...
Qc4 {[%clk 0:00:21.7]} 21. b3 {[%clk 0:00:46.6]} 21... Qd3 {[%clk 0:00:21.6]}
22. Bxd5 {[%clk 0:00:42.5]} 22... Qxd5+ {[%clk 0:00:21.1]} 23. Kh2 {[%clk
0:00:37.4]} 23... fxg5 {[%clk 0:00:19.2]} 24. Qd1 {[%clk 0:00:25.7]} 24... Qe4
{[%clk 0:00:16.1]} 25. Bf2 {[%clk 0:00:19.1]} 25... Ng4+ {[%clk 0:00:13.9]} 26.
Kg1 {[%clk 0:00:12.8]} 26... O-O {[%clk 0:00:13.6]} 27. Bd4 {[%clk 0:00:06.4]}
27... Ne3 {[%clk 0:00:10.9]} 28. Qe2 {[%clk 0:00:05.6]} 28... Rf1+ {[%clk
0:00:10.4]} 29. Qxf1 {[%clk 0:00:05.8]} 29... Nxf1 {[%clk 0:00:11.1]} 30. Rh3
{[%clk 0:00:04.2]} 30... Rf8 {[%clk 0:00:10.2]} 31. Na3 {[%clk 0:00:03.3]} 31...
Qg4+ {[%clk 0:00:10.2]} 0-1